bitfinex-derivatives/quotes_BTCF0:USTF0_20250517
["timestamp","ask_amount","ask_price","bid_price","bid_amount"]
[1747505706960,0.62680996,103280.0,103270.0,0.05568709]
[1747505706961,0.88510632,103280.0,103270.0,0.05568709]
[1747505707157,1.06510632,103280.0,103270.0,0.24927369]
[1747505707451,0.80680996,103280.0,103270.0,0.24927369]
[1747505708557,0.80680996,103280.0,103270.0,0.05568709]
[1747505708558,1.41193432,103280.0,103270.0,0.05568709]
[1747505708861,1.87833432,103280.0,103270.0,0.05568709]
[1747505709249,1.68476652,103280.0,103260.0,0.04526072]
[1747505709451,0.87808296,103270.0,103260.0,0.04526072]
[1747505709653,0.90868296,103270.0,103260.0,0.04526072]
[1747505709846,1.25552297,103270.0,103260.0,0.04526072]
[1747505710156,0.8303866,103270.0,103260.0,0.23886602]
[1747505710356,0.8303866,103270.0,103260.0,0.2927434]
[1747505710754,0.8303866,103270.0,103260.0,0.2937434]
[1747505711059,0.6062,103270.0,103260.0,0.6437434]
[1747505711257,0.4262,103270.0,103260.0,0.7051434]
[1747505711561,0.56180996,103280.0,103270.0,0.1935865]
[1747505711754,0.6196678,103280.0,103270.0,0.59042866]
[1747505712056,0.7996678,103280.0,103270.0,0.59042866]
[1747505712660,0.7996678,103280.0,103270.0,0.63886388]
[1747505712860,0.7699678,103280.0,103270.0,0.63886388]
[1747505713058,0.8006678,103280.0,103270.0,0.63886388]
[1747505713362,1.06896416,103280.0,103270.0,0.05387738]
[1747505714664,1.16579216,103280.0,103270.0,0.05387738]
[1747505714867,1.17123432,103280.0,103270.0,0.05387738]
[1747505715361,0.1935866,103270.0,103260.0,0.36616442]
[1747505715562,0.6192866,103270.0,103260.0,0.36616442]
[1747505716065,0.6192866,103270.0,103260.0,0.07576072]
[1747505716260,0.7992866,103270.0,103260.0,0.07576072]
[1747505716456,0.7992866,103270.0,103260.0,0.27683105]
[1747505716858,0.7992866,103270.0,103260.0,0.30813105]
[1747505717060,0.7992866,103270.0,103260.0,0.64813105]
[1747505717367,0.7992866,103270.0,103260.0,0.65013105]
[1747505717767,0.7343866,103270.0,103260.0,0.65013105]
[1747505718157,0.7958866,103270.0,103260.0,0.65013105]
[1747505718463,0.7647866,103270.0,103260.0,0.65013105]
[1747505718769,0.7343866,103270.0,103260.0,0.65013105]
[1747505720268,0.7343866,103270.0,103260.0,0.5974053]
[1747505720967,0.73982876,103270.0,103260.0,0.5974053]
[1747505721964,0.54624216,103270.0,103260.0,0.88710166]
[1747505722269,0.00544216,103270.0,103260.0,0.88710166]
[1747505722662,0.00544216,103270.0,103260.0,0.6288053]
[1747505723162,0.00544216,103270.0,103260.0,0.98394166]
[1747505723367,0.3628,103280.0,103270.0,0.1935865]
[1747505723563,0.3628,103280.0,103270.0,0.83266435]
[1747505724270,0.5428,103280.0,103270.0,0.83266435]
[1747505724856,0.5428,103280.0,103270.0,1.22447982]
[1747505725171,0.3608,103300.0,103290.0,0.1935491]
[1747505725355,0.5543304,103300.0,103290.0,0.75882695]
[1747505725561,0.5543304,103300.0,103290.0,0.6286491]
[1747505726268,0.7343304,103300.0,103290.0,0.6286491]
[1747505726471,0.7373304,103300.0,103290.0,0.6286491]
[1747505727372,0.7413304,103300.0,103290.0,0.6286491]
[1747505727774,0.7393304,103300.0,103290.0,0.6286491]
[1747505728073,0.7373304,103300.0,103290.0,0.6286491]
[1747505728571,0.5438,103300.0,103290.0,0.6286491]
[1747505728775,0.5438,103300.0,103290.0,0.82392695]
[1747505729278,0.7373303,103300.0,103290.0,0.82392695]
[1747505729574,0.7373303,103300.0,103290.0,0.6286491]
[1747505729872,0.7363303,103300.0,103290.0,0.6286491]
[1747505730071,0.7353303,103300.0,103290.0,0.6286491]
[1747505731070,0.5418,103300.0,103290.0,0.6286491]
[1747505731270,0.7353303,103300.0,103290.0,0.6286491]
[1747505733969,0.8176303,103300.0,103290.0,0.6286491]
[1747505734168,1.01290815,103300.0,103290.0,0.0325]
[1747505734367,1.01290815,103300.0,103290.0,0.2260491]
[1747505734568,1.01290815,103300.0,103290.0,0.0325]
[1747505735075,0.1935491,103290.0,103280.0,0.4011267]
[1747505735267,0.6163491,103290.0,103280.0,0.7254353]
[1747505736173,0.7963491,103290.0,103280.0,0.7264353]
[1747505736374,0.99162695,103290.0,103280.0,0.0357]
[1747505736574,0.99162695,103290.0,103280.0,0.003]
[1747505737469,1.03282695,103290.0,103280.0,0.003]
[1747505738479,1.02282695,103290.0,103280.0,0.1965678]
[1747505738979,0.8275491,103290.0,103280.0,0.6077678]
[1747505739276,0.7963491,103290.0,103280.0,0.6077678]
[1747505739469,0.7963491,103290.0,103280.0,0.6395678]
[1747505740074,0.99162695,103290.0,103280.0,0.003]
[1747505740279,1.01162695,103290.0,103280.0,0.003]
[1747505740574,1.04362695,103290.0,103280.0,0.003]
[1747505742173,1.71581795,103290.0,103280.0,0.003]
[1747505743377,0.1935678,103280.0,103270.0,0.00193658]
[1747505743573,0.83534565,103280.0,103270.0,0.00193658]
[1747505744079,1.01534565,103280.0,103270.0,0.00193658]
[1747505744480,0.1936053,103260.0,103250.0,0.27603725]
[1747505744681,1.11048315,103260.0,103250.0,0.67473725]
[1747505744976,1.17628315,103260.0,103250.0,0.00242125]
[1747505745170,1.35628315,103260.0,103250.0,0.19604535]
[1747505746069,1.35628315,103260.0,103250.0,0.00242125]
[1747505746782,1.35728315,103260.0,103250.0,0.00242125]
[1747505749377,1.99732315,103260.0,103250.0,0.00242125]
[1747505750083,0.1936241,103250.0,103240.0,0.07954593]
[1747505750381,0.81260195,103250.0,103240.0,0.37318873]
[1747505751180,0.7973241,103250.0,103240.0,0.64418873]
[1747505751385,0.7973241,103250.0,103240.0,0.67758873]
[1747505751778,0.7973241,103250.0,103240.0,0.6283428]
[1747505751979,0.7973241,103250.0,103240.0,0.6609428]
[1747505752277,0.7667241,103250.0,103240.0,0.6609428]
[1747505753676,0.99450195,103250.0,103240.0,0.4023]
[1747505753882,0.99450195,103250.0,103240.0,0.5959428]
[1747505754683,0.99450195,103250.0,103240.0,0.4023]
[1747505755374,0.99450195,103250.0,103240.0,0.5959428]
[1747505755981,0.99450195,103250.0,103240.0,0.2259428]
[1747505756686,0.99450195,103250.0,103240.0,0.0323]
[1747505757082,1.02610195,103250.0,103240.0,0.002]
[1747505757275,1.33786195,103250.0,103240.0,0.002]
[1747505757476,0.1936428,103240.0,103230.0,0.00193733]
[1747505757693,0.1936803,103220.0,103210.0,0.03336885]
[1747505757980,0.1936991,103210.0,103200.0,0.14526072]
[1747505758180,1.43627695,103210.0,103200.0,0.14526072]
[1747505758387,1.56477296,103210.0,103200.0,0.14526072]
[1747505758684,1.69477296,103210.0,103200.0,0.14526072]
[1747505758984,0.5545367,103190.0,103180.0,2e-08]
[1747505759203,0.1937742,103170.0,103160.0,1.46097299]
[1747505759480,0.193793,103160.0,103150.0,0.15051022]
[1747505759783,1.0288487,103160.0,103150.0,0.15051022]
[1747505759982,0.638293,103160.0,103150.0,0.15051022]
[1747505760180,0.638293,103160.0,103150.0,0.22665063]
[1747505760181,1.58913085,103160.0,103150.0,0.22665063]
[1747505760381,1.58965085,103160.0,103150.0,0.03283883]
[1747505760578,1.85020043,103160.0,103150.0,0.03283883]
[1747505760775,0.1938306,103140.0,103130.0,0.08496028]
[1747505760979,0.5081091,103140.0,103130.0,0.30897043]
[1747505761182,0.5081091,103140.0,103130.0,0.68897043]
[1747505761183,1.0489091,103140.0,103130.0,0.68897043]
[1747505761384,0.3761091,103140.0,103130.0,0.6051494]
[1747505761688,0.93218695,103140.0,103130.0,0.2251494]
[1747505761877,0.4373091,103140.0,103130.0,0.2251494]
[1747505762080,0.7369091,103140.0,103130.0,0.2251494]
[1747505762278,0.7677091,103140.0,103130.0,0.2251494]
[1747505762477,0.7677091,103140.0,103130.0,0.3051494]
[1747505762478,0.7369091,103140.0,103130.0,0.3051494]
[1747505762692,0.78173852,103140.0,103130.0,0.5451494]
[1747505763078,0.97701637,103140.0,103130.0,0.0313]
[1747505763491,1.03971637,103140.0,103130.0,0.0313]
[1747505763685,1.03971637,103140.0,103130.0,0.2281494]
[1747505763989,1.03971637,103140.0,103130.0,0.2581494]
[1747505764383,1.03971637,103140.0,103130.0,0.0623]
[1747505764787,0.1938494,103130.0,103120.0,0.10533749]
[1747505764989,1.4419065,103130.0,103120.0,0.10533749]
[1747505765183,0.1938681,103120.0,103110.0,0.14626061]
[1747505765384,0.6194681,103120.0,103110.0,0.37184751]
[1747505765589,0.8158852,103120.0,103110.0,0.37184751]
[1747505765786,1.21586735,103120.0,103110.0,0.62802648]
[1747505765990,1.18276735,103120.0,103110.0,0.62802648]
[1747505766487,0.38243416,103140.0,103130.0,0.1938494]
[1747505766685,0.38243416,103140.0,103130.0,0.5638494]
[1747505766885,0.57626476,103140.0,103130.0,0.6262494]
[1747505767085,0.57626476,103140.0,103130.0,0.2962494]
[1747505767086,0.95154261,103140.0,103130.0,0.2962494]
[1747505767284,1.01634261,103140.0,103130.0,0.5762494]
[1747505767681,1.01634261,103140.0,103130.0,0.0624]
[1747505767992,1.01834261,103140.0,103130.0,0.0624]
[1747505768291,0.1938493,103130.0,103120.0,0.242323]
[1747505768487,0.78142715,103130.0,103120.0,0.316023]
[1747505768682,0.81162715,103130.0,103120.0,0.316023]
[1747505769192,0.99162715,103130.0,103120.0,0.316023]
[1747505769880,0.99262715,103130.0,103120.0,0.316023]
[1747505770695,0.99362715,103130.0,103120.0,0.316023]
[1747505770881,0.99362715,103130.0,103120.0,0.0637]
[1747505771797,0.7983493,103130.0,103120.0,0.2575682]
[1747505771997,0.99362715,103130.0,103120.0,0.0637]
[1747505772198,0.99362715,103130.0,103120.0,0.2575682]
[1747505772591,0.99362715,103130.0,103120.0,0.0321]
[1747505772994,0.1938682,103120.0,103110.0,0.25772658]
[1747505773197,0.8000682,103120.0,103110.0,0.28892658]
[1747505773495,0.99534605,103120.0,103110.0,0.28892658]
[1747505774097,0.5546682,103120.0,103110.0,0.60892658]
[1747505774291,0.74994605,103120.0,103110.0,0.60992658]
[1747505774490,0.42064605,103120.0,103110.0,0.60992658]
[1747505774684,0.78144605,103120.0,103110.0,0.60992658]
[1747505774891,0.42064605,103120.0,103110.0,0.60992658]
[1747505775086,0.3618,103130.0,103120.0,0.1938681]
[1747505775286,0.1948493,103130.0,103120.0,0.6294681]
[1747505775799,0.1938493,103130.0,103120.0,0.6294681]
[1747505776299,1.12194777,103140.0,103130.0,0.1938494]
[1747505776503,1.12194777,103140.0,103130.0,0.2694494]
[1747505776694,1.12738993,103140.0,103130.0,0.2694494]
[1747505777103,1.30738993,103140.0,103130.0,0.2694494]
[1747505777503,1.21446773,103140.0,103130.0,0.2594494]
[1747505777696,1.20902557,103140.0,103130.0,0.5894494]
[1747505778202,0.87959416,103140.0,103130.0,0.5894494]
[1747505778599,0.87959416,103140.0,103130.0,0.2694494]
[1747505779103,1.05959416,103140.0,103130.0,0.2694494]
[1747505779607,1.06259416,103140.0,103130.0,0.2694494]
[1747505780205,1.05859416,103140.0,103130.0,0.2694494]
[1747505780503,1.06059416,103140.0,103130.0,0.2694494]
[1747505780700,1.06059416,103140.0,103130.0,0.0332]
[1747505780701,1.06603632,103140.0,103130.0,0.0332]
[1747505780906,1.06603632,103140.0,103110.0,0.12938008]
[1747505780907,0.1938682,103120.0,103110.0,0.37172388]
[1747505781101,0.1938682,103120.0,103110.0,0.75172388]
[1747505781297,0.3738682,103120.0,103110.0,0.75172388]
[1747505781707,0.7346682,103120.0,103110.0,0.75172388]
[1747505781902,0.7977682,103120.0,103110.0,0.81522388]
[1747505782101,0.81304605,103120.0,103110.0,0.33828088]
[1747505782297,0.81304605,103120.0,103110.0,0.46828088]
[1747505782702,0.81304605,103120.0,103110.0,0.28981188]
[1747505782904,0.6177682,103120.0,103110.0,0.28981188]
[1747505783202,0.99304605,103120.0,103110.0,0.28981188]
[1747505783700,0.99404605,103120.0,103110.0,0.28981188]
[1747505783906,1.05381861,103120.0,103110.0,0.29081188]
[1747505785398,1.05381861,103120.0,103110.0,0.28981188]
[1747505785607,1.05481861,103120.0,103110.0,0.28981188]
[1747505786904,1.05481861,103120.0,103110.0,0.09593958]
[1747505787108,1.05481861,103120.0,103110.0,0.29982658]
[1747505787312,1.11459118,103120.0,103110.0,0.29982658]
[1747505788006,1.11459118,103120.0,103110.0,0.19582658]
[1747505788209,1.11459118,103120.0,103110.0,0.00193958]
[1747505789327,0.91931333,103120.0,103110.0,0.19582658]
[1747505789521,1.11459118,103120.0,103110.0,0.23242386]
[1747505790127,0.93459118,103120.0,103110.0,0.23242386]
[1747505790528,0.73931333,103120.0,103110.0,0.23242386]
[1747505790720,0.93459118,103120.0,103110.0,0.23242386]
[1747505791022,0.81504605,103120.0,103110.0,0.23242386]
[1747505791825,0.81504605,103120.0,103110.0,0.03853686]
[1747505792016,0.81504605,103120.0,103110.0,0.23242386]
[1747505793314,0.81504605,103120.0,103110.0,0.33383264]
[1747505794028,0.81504605,103120.0,103110.0,0.13994564]
[1747505794217,0.81504605,103120.0,103110.0,0.33383264]
[1747505794719,0.81504605,103120.0,103110.0,0.36453264]
[1747505795120,0.81504605,103120.0,103110.0,0.39573264]
[1747505795325,0.81504605,103120.0,103110.0,0.73573264]
[1747505795326,0.76908112,103120.0,103110.0,0.73573264]
[1747505796123,0.76908112,103120.0,103110.0,0.5472878]
[1747505796329,0.76908112,103120.0,103110.0,0.2072878]
[1747505796719,0.76908112,103120.0,103110.0,0.1760878]
[1747505796920,0.76908112,103120.0,103110.0,0.17064564]
[1747505797322,0.6197682,103120.0,103110.0,0.17064564]
[1747505797632,0.76908112,103120.0,103110.0,0.17064564]
[1747505798229,0.76908112,103120.0,103110.0,0.71453254]
[1747505798533,0.6197682,103120.0,103110.0,0.74633254]
[1747505798731,0.76908112,103120.0,103110.0,0.74633254]
[1747505798929,0.6197682,103120.0,103110.0,0.77953254]
[1747505799322,0.76908112,103120.0,103110.0,0.77953254]
[1747505800232,0.5872682,103120.0,103110.0,0.77953254]
[1747505800822,0.5872682,103120.0,103110.0,0.77971165]
[1747505801226,0.3628,103120.0,103110.0,0.95971165]
[1747505801532,0.5566681,103120.0,103110.0,0.95971165]
[1747505802128,0.5566681,103120.0,103110.0,0.96515381]
[1747505806035,0.5566681,103120.0,103110.0,0.95971165]
[1747505808031,0.1958681,103120.0,103110.0,1.10902457]
[1747505808637,0.1958681,103120.0,103110.0,0.95971165]
[1747505809336,0.1958681,103120.0,103110.0,0.96515381]
[1747505810038,0.15258159,103120.0,103110.0,0.96515381]
[1747505810240,0.15258159,103120.0,103110.0,0.95971165]
[1747505810839,0.36364872,103120.0,103110.0,0.95971165]
[1747505812242,0.93626164,103120.0,103110.0,0.60971165]
[1747505812544,0.93626164,103120.0,103110.0,0.92971165]
[1747505813243,0.90534327,103120.0,103110.0,0.74971165]
[1747505815341,0.90534327,103120.0,103110.0,0.61170559]
[1747505819545,0.75603035,103120.0,103110.0,0.61170559]
[1747505820246,0.90534327,103120.0,103110.0,0.66330483]
[1747505820443,0.90534327,103120.0,103110.0,0.46941793]
[1747505820647,0.90534327,103120.0,103110.0,0.34760483]
[1747505820949,0.90534327,103120.0,103110.0,0.59760483]
[1747505821137,0.75603035,103120.0,103110.0,0.66030483]
[1747505821335,0.75603035,103120.0,103110.0,0.66574699]
[1747505822440,0.46743533,103120.0,103110.0,0.66574699]
[1747505823244,0.43513533,103120.0,103110.0,1.20654699]
[1747505823448,0.43513533,103120.0,103110.0,0.84574699]
[1747505823647,0.43513533,103120.0,103110.0,1.20654699]
[1747505824647,0.43513533,103120.0,103110.0,0.84574699]
[1747505824848,0.43513533,103120.0,103110.0,1.20654699]
[1747505826047,0.40493533,103120.0,103110.0,1.63281991]
[1747505826446,0.21106713,103120.0,103110.0,2.01031991]
[1747505826652,0.40493533,103120.0,103110.0,2.01031991]
[1747505826950,0.21106713,103120.0,103110.0,2.01031991]
[1747505827250,0.40493533,103120.0,103110.0,2.01031991]
[1747505827945,0.40493533,103120.0,103110.0,2.03293991]
[1747505828747,0.40493533,103120.0,103110.0,2.08235223]
[1747505829052,0.55599964,103120.0,103110.0,2.08235223]
[1747505830350,0.36213144,103120.0,103110.0,2.08235223]
[1747505830555,0.36213144,103120.0,103110.0,2.43275223]
[1747505830757,0.55599964,103120.0,103110.0,2.43275223]
[1747505831651,0.55599964,103120.0,103110.0,2.33577223]
[1747505832556,0.55599964,103120.0,103110.0,1.90949931]
[1747505832753,0.58599964,103120.0,103110.0,2.18277931]
[1747505832954,0.61849964,103120.0,103110.0,1.62897931]
[1747505833257,0.36213144,103120.0,103110.0,2.05149223]
[1747505833659,0.36213144,103120.0,103110.0,1.70109223]
[1747505833863,0.55599954,103120.0,103110.0,1.70109223]
[1747505834858,0.55599954,103120.0,103110.0,1.42789223]
[1747505835058,0.55599954,103120.0,103110.0,1.70037223]
[1747505835960,0.34493241,103120.0,103110.0,1.66331299]
[1747505838662,0.34493241,103120.0,103110.0,1.66123299]
[1747505838869,0.37533241,103120.0,103110.0,1.51192007]
[1747505839167,0.40733241,103120.0,103110.0,1.51192007]
[1747505839569,0.40733241,103120.0,103110.0,0.88072007]
[1747505839762,0.55664533,103120.0,103110.0,0.88072007]
[1747505839961,0.91744533,103120.0,103110.0,0.88072007]
[1747505840162,0.76813241,103120.0,103110.0,0.88072007]
[1747505841169,0.76813241,103120.0,103110.0,0.70072007]
[1747505841474,0.91744533,103120.0,103110.0,0.63802007]
[1747505841968,0.76813241,103120.0,103110.0,0.63802007]
[1747505842169,0.55664533,103120.0,103110.0,0.63802007]
[1747505842759,0.91744533,103120.0,103110.0,0.63802007]
[1747505843269,0.91744533,103120.0,103110.0,0.44413317]
[1747505843469,0.94754533,103120.0,103110.0,0.63802007]
[1747505843767,0.94754533,103120.0,103110.0,0.44413317]
[1747505843968,0.94754533,103120.0,103110.0,0.63802017]
[1747505844272,1.01754533,103120.0,103110.0,0.27413317]
[1747505844661,0.94754533,103120.0,103110.0,0.80802017]
[1747505845164,0.94754533,103120.0,103110.0,0.62802017]
[1747505845474,0.94754533,103120.0,103110.0,0.61565624]
[1747505846065,0.94754533,103120.0,103110.0,0.79565624]
[1747505848272,0.79823241,103120.0,103110.0,0.79565624]
[1747505848475,0.79823241,103120.0,103110.0,0.78890785]
[1747505850078,0.79648102,103120.0,103110.0,0.44890785]
[1747505850269,0.79648102,103120.0,103110.0,0.82890785]
[1747505851381,0.6471681,103120.0,103110.0,0.82890785]
[1747505852381,0.79648102,103120.0,103110.0,0.79860785]
[1747505856981,1.00754815,103120.0,103110.0,0.79860785]
[1747505857987,0.82813523,103120.0,103110.0,0.79860785]
[1747505858283,0.82813523,103120.0,103110.0,0.86240785]
[1747505859084,0.46733523,103120.0,103110.0,0.86240785]
[1747505859384,0.27346713,103120.0,103110.0,0.86240785]
[1747505859586,0.43533523,103120.0,103110.0,0.86240785]
[1747505860386,0.46833523,103120.0,103110.0,0.86240785]
[1747505860787,0.61920851,103120.0,103110.0,0.86240785]
[1747505862591,0.58620851,103120.0,103110.0,0.86240785]
[1747505863190,0.55580851,103120.0,103110.0,1.01172077]
[1747505863690,0.55580851,103120.0,103110.0,1.36212077]
[1747505863888,0.55580851,103120.0,103110.0,1.39916916]
[1747505864088,0.55580851,103120.0,103110.0,1.24985624]
[1747505865083,0.36194041,103120.0,103110.0,1.61065624]
[1747505865490,0.36194041,103120.0,103110.0,1.75996916]
[1747505867995,0.36194041,103120.0,103110.0,1.77233309]
[1747505868195,0.36194041,103120.0,103110.0,2.03261309]
[1747505868994,0.33102452,103120.0,103110.0,2.03261309]
[1747505869387,0.45177414,103120.0,103110.0,2.03261309]
[1747505870493,0.64564224,103120.0,103110.0,2.03261309]
[1747505870792,0.45177414,103120.0,103110.0,2.28909309]
[1747505871395,0.45177414,103120.0,103110.0,1.92829309]
[1747505871696,0.45177414,103120.0,103110.0,2.28909309]
[1747505871898,0.45177414,103120.0,103110.0,1.92829309]
[1747505872097,0.45177414,103120.0,103110.0,2.28909309]
[1747505875398,0.45177414,103120.0,103110.0,2.27670499]
[1747505875598,0.45177414,103120.0,103110.0,1.92630499]
[1747505876595,0.45177414,103120.0,103110.0,2.27670499]
[1747505876799,0.30163491,103130.0,103120.0,0.1938682]
[1747505876987,0.30163491,103130.0,103120.0,1.45838112]
[1747505877190,0.30163491,103130.0,103120.0,1.63838112]
[1747505877698,0.30163491,103130.0,103120.0,1.75791912]
[1747505877903,0.0324,103140.0,103130.0,0.1938494]
[1747505878104,0.0324,103140.0,103130.0,1.19040232]
[1747505878296,1.44368901,103150.0,103140.0,0.1938306]
[1747505878489,0.91879746,103150.0,103140.0,0.6379901]
[1747505878695,1.11260926,103150.0,103140.0,0.6379901]
[1747505878893,0.72671929,103150.0,103140.0,0.6379901]
[1747505879103,0.72671929,103150.0,103140.0,0.8179901]
[1747505879898,0.72871929,103150.0,103140.0,0.8179901]
[1747505880403,0.73071929,103150.0,103140.0,0.8179901]
[1747505880604,0.73071929,103150.0,103140.0,0.8325301]
[1747505882506,0.73071929,103150.0,103140.0,0.84726102]
[1747505882898,0.53690749,103150.0,103140.0,0.84726102]
[1747505883106,0.53690749,103150.0,103140.0,1.20806102]
[1747505883300,0.53690749,103150.0,103140.0,1.30597297]
[1747505884113,0.002,103160.0,103150.0,0.1938118]
[1747505884403,0.0012405,103160.0,103150.0,1.02644275]
[1747505884608,0.0324405,103160.0,103150.0,1.18099055]
[1747505885108,0.0324405,103160.0,103150.0,1.7191425]
[1747505885301,0.74668997,103170.0,103160.0,0.193793]
[1747505885501,0.97166417,103170.0,103160.0,0.59797275]
[1747505885694,0.97166417,103170.0,103160.0,0.5983525]
[1747505885903,0.77788997,103170.0,103160.0,0.6966442]
[1747505886111,0.77788997,103170.0,103160.0,0.77873225]
[1747505886611,0.78188997,103170.0,103160.0,0.77873225]
[1747505887312,0.78188997,103170.0,103160.0,0.87873225]
[1747505887610,0.45348997,103170.0,103160.0,1.02789266]
[1747505887810,0.60265038,103170.0,103160.0,1.23953225]
[1747505888012,0.45348997,103170.0,103160.0,1.23953225]
[1747505889012,0.45348997,103170.0,103160.0,1.38869266]
[1747505889514,0.45348997,103170.0,103160.0,1.23953225]
[1747505889915,0.64726417,103170.0,103160.0,0.87873225]
[1747505890107,0.45348997,103170.0,103160.0,0.87873225]
[1747505891110,1.30638499,103170.0,103160.0,0.49113925]
[1747505891416,1.30638499,103170.0,103160.0,0.18113925]
[1747505891417,1.43638499,103170.0,103160.0,0.18113925]
[1747505891602,1.43638499,103170.0,103160.0,0.18]
[1747505891603,1.78331699,103170.0,103160.0,0.18]
[1747505891807,0.193793,103160.0,103150.0,0.00269833]
[1747505892001,0.90375341,103160.0,103150.0,0.00269833]
[1747505892203,1.00069341,103160.0,103150.0,0.37651013]
[1747505892407,0.71375341,103160.0,103150.0,0.74651013]
[1747505892608,0.71375341,103160.0,103150.0,0.77771013]
[1747505892806,0.70375341,103160.0,103150.0,0.77771013]
[1747505894210,0.70375341,103160.0,103150.0,0.80801013]
[1747505894411,0.70575341,103160.0,103150.0,0.43801013]
[1747505894715,0.70775341,103160.0,103150.0,0.77771013]
[1747505894915,0.76795341,103160.0,103150.0,0.77771013]
[1747505895619,0.57416041,103160.0,103150.0,0.80026013]
[1747505895914,0.425,103160.0,103150.0,0.86366013]
[1747505896106,0.0373,103160.0,103150.0,0.86366013]
[1747505898520,0.004,103160.0,103150.0,0.86366013]
[1747505898721,0.004,103160.0,103150.0,1.01282054]
[1747505899019,0.004,103160.0,103150.0,2.09374054]
[1747505899511,0.38588997,103170.0,103150.0,2.34510054]
[1747505899717,0.40675639,103200.0,103160.0,0.57016041]
[1747505899917,0.3608,103210.0,103160.0,0.71932082]
[1747505900121,0.07346364,103220.0,103210.0,0.1936946]
[1747505900310,8e-08,103230.0,103220.0,0.6029003]
[1747505900619,0.57239024,103250.0,103240.0,0.1936428]
[1747505900916,0.16824439,103280.0,103270.0,0.1935866]
[1747505900917,0.09305089,103280.0,103270.0,0.1935866]
[1747505901218,0.28692089,103280.0,103270.0,1.38354701]
[1747505901607,1.00128869,103280.0,103270.0,0.18]
[1747505901809,0.64048869,103280.0,103270.0,0.6935866]
[1747505902013,0.48048879,103280.0,103270.0,0.84274701]
[1747505902414,0.28692089,103280.0,103270.0,1.34311678]
[1747505902609,0.09305089,103280.0,103270.0,1.66904633]
[1747505902818,0.09305089,103280.0,103270.0,1.72784633]
[1747505903022,0.101,103300.0,103290.0,0.1935491]
[1747505903219,0.101,103300.0,103290.0,0.9043491]
[1747505903420,0.4884004,103300.0,103290.0,0.5435491]
[1747505903612,0.101,103300.0,103290.0,1.20747857]
[1747505903921,0.29487,103300.0,103290.0,1.56827857]
[1747505904120,0.29487,103300.0,103290.0,1.53635898]
[1747505904317,0.29687,103300.0,103290.0,1.89715898]
[1747505905009,0.29687,103300.0,103290.0,1.74799857]
[1747505905418,0.29687,103300.0,103290.0,1.83758085]
[1747505905618,0.30087,103300.0,103290.0,1.83758085]
[1747505905815,0.0327314,103320.0,103310.0,0.1935116]
[1747505906015,0.2911014,103320.0,103310.0,0.9143116]
[1747505906214,0.2911014,103320.0,103310.0,1.29024115]
[1747505906818,0.2911014,103320.0,103310.0,1.37982343]
[1747505907017,0.03687768,103330.0,103320.0,0.1934929]
[1747505907222,0.0328,103340.0,103330.0,0.1934742]
[1747505907520,0.22667,103340.0,103330.0,0.8942742]
[1747505908121,0.22667,103340.0,103330.0,0.7134742]
[1747505908420,0.22667,103340.0,103330.0,1.0742742]
[1747505908620,0.23067,103340.0,103330.0,1.12104334]
[1747505908823,0.7849255,103340.0,103330.0,0.53024334]
[1747505909021,0.4241255,103340.0,103330.0,0.22676914]
[1747505909213,0.93408591,103340.0,103330.0,0.22676914]
[1747505909825,0.93408591,103340.0,103330.0,0.22776914]
[1747505910126,0.56928591,103340.0,103330.0,0.22776914]
[1747505910427,0.96158591,103340.0,103330.0,0.22776914]
[1747505910629,0.8124255,103340.0,103330.0,0.22776914]
[1747505910824,0.8124255,103340.0,103330.0,0.42124334]
[1747505910825,0.4516255,103340.0,103330.0,0.42124334]
[1747505911031,0.4516255,103340.0,103330.0,0.73124334]
[1747505911231,0.4516255,103340.0,103330.0,0.58856914]
[1747505911524,0.51004102,103340.0,103330.0,0.78242309]
[1747505911917,0.36088061,103340.0,103330.0,0.79752185]
[1747505912121,0.51004102,103340.0,103330.0,1.01099605]
[1747505912321,0.39278061,103340.0,103330.0,1.33099605]
[1747505912630,0.54194102,103340.0,103330.0,1.33099605]
[1747505912829,0.54194102,103340.0,103330.0,1.13752185]
[1747505913040,0.90274102,103340.0,103330.0,0.43672185]
[1747505913717,1.25151302,103340.0,103330.0,0.55489048]
[1747505913920,0.1934742,103330.0,103320.0,0.14771079]
[1747505914123,0.7971742,103330.0,103320.0,0.14771079]
[1747505914328,0.94633461,103330.0,103320.0,0.14771079]
[1747505914520,1.12729502,103330.0,103320.0,0.14771079]
[1747505914716,1.22407502,103330.0,103320.0,0.04791079]
[1747505915228,0.6489742,103330.0,103320.0,0.04791079]
[1747505915431,0.48336962,103330.0,103320.0,0.05891079]
[1747505915729,0.45156962,103330.0,103320.0,0.05891079]
[1747505915924,0.45156962,103330.0,103320.0,0.09141079]
[1747505916130,0.81236962,103330.0,103320.0,0.27141079]
[1747505916833,0.81236962,103330.0,103320.0,0.23891079]
[1747505917335,0.78150834,103330.0,103320.0,0.05967029]
[1747505917842,0.78150834,103330.0,103310.0,0.00193583]
[1747505917843,0.1934929,103320.0,103310.0,0.00193583]
[1747505918024,0.97768374,103320.0,103310.0,3e-08]
[1747505918224,0.78248832,103320.0,103310.0,3e-08]
[1747505918928,0.5872929,103320.0,103310.0,0.37000003]
[1747505919119,0.5872929,103320.0,103310.0,0.77691163]
[1747505919326,0.54408903,103320.0,103310.0,0.58340003]
[1747505919731,0.54408903,103320.0,103310.0,0.77591163]
[1747505920038,0.18328903,103320.0,103310.0,0.77691163]
[1747505920234,0.18328903,103320.0,103310.0,0.83193163]
[1747505920432,0.18328903,103320.0,103310.0,0.82193163]
[1747505920733,0.18328903,103320.0,103310.0,0.46093163]
[1747505921041,0.54408903,103320.0,103310.0,0.83093163]
[1747505921229,0.57728903,103320.0,103310.0,0.83093163]
[1747505921431,0.77248445,103320.0,103310.0,0.32492003]
[1747505921643,0.77248445,103320.0,103310.0,0.20352003]
[1747505926725,0.77248445,103320.0,103310.0,0.26403925]
[1747505927538,0.77248445,103320.0,103310.0,0.41310183]
[1747505928528,0.78728721,103320.0,103310.0,0.41310183]
[1747505928837,0.83049108,103320.0,103310.0,0.41310183]
[1747505929938,0.83049108,103320.0,103310.0,0.41854399]
[1747505930136,0.69432385,103320.0,103310.0,0.41854399]
[1747505930833,0.49912843,103320.0,103310.0,0.45114399]
[1747505931052,0.69432385,103320.0,103310.0,0.45114399]
[1747505931236,0.69432385,103320.0,103310.0,0.64465559]
[1747505931532,0.65728637,103320.0,103310.0,0.72628981]
[1747505931735,0.475733,103320.0,103310.0,0.53277821]
[1747505931942,0.475733,103320.0,103310.0,0.72628971]
[1747505932541,0.475733,103320.0,103310.0,0.53277821]
[1747505932742,0.28053758,103320.0,103310.0,1.05628971]
[1747505932951,0.20829566,103320.0,103310.0,1.42947781]
[1747505933244,0.23909566,103320.0,103310.0,1.42947781]
[1747505934143,0.23909566,103320.0,103310.0,1.09947781]
[1747505934448,0.43429108,103320.0,103310.0,0.75867781]
[1747505935243,0.38784164,103320.0,103310.0,0.73867781]
[1747505935551,0.38784164,103320.0,103310.0,0.86516631]
[1747505935749,0.38784164,103320.0,103310.0,0.55516631]